Workbook

Sheet INPUT-output
A1: vissza
C3: Tisztelt Felhasználó!
C4: Kérjük, hogy az alábbi listából válassza ki az Önre vonatkozó adatokat: | F4: Magyarázat:
C6: Gépjármű első magyarországi forgalomba helyezése: | D6: 2013 | F6: A kért adat a forgalmi engedély B mezőjében található.
C7: Gépjármű teljesítménye (kW): | D7: 101-124 kW között | F7: A kért adat a forgalmi engedély P.2 mezőjében található.
C8: Szerződő Bonus-Malus besorolása: | D8: B8 | F8: A 21/2011. (VI. 10.) NGM rendelet szerinti besorolás.
C9: Szerződő kora: | D9: 24-29, | F9: A díjszámítás alapjául szolgáló biztosítási időszak első napjának évszámából vonja ki a Szerződő születési évszámát.
C10: Szerződő lakhelye: | D10: Terület V | F10: Kérjük, válasszon a területi kategóriák alapján. Az irányítószámokhoz tartozó kategóriákat itt találja.
C11: Gépjármű felhasználási jellege: | D11: Normál | F11: Egyéb: Taxi, futár, bérgépjármű, oktató autó, páncélozott, vagy értékszállító jármű, mentő, rendőr, tűzoltó, hadsereg, köztisztasági, veszélyes anyagot szállító, versenyautó.
C13: Kalkulált éves KGFB díj (Ft) | D13: =IF(10<='Manuális adatbázis'!AE24,'Manuális adatbázis'!AH17,'Manuális adatbázis'!AI17) -> 41287.3

Sheet Manuális adatbázis
A1: Sorszám | B1: Rendszám | C1: Első forgalomba helyezés éve | D1: Gépjármű kategória | E1: Bonus-Malus osztály | F1: Bonus-Malus osztály kategória | G1: Lakhely | H1: Kor | I1: Kor kategória | J1: Nem | K1: Használat jellege | L1: Kedvezmény | M1: Károkozói pótdíj | N1: DÍJ (makró4 - ctrl+g) | P1: MAKRÓ | T1: 1 | U1: 2 | V1: 3 | W1: 4 | X1: 5 | Y1: 6 | Z1: 7 | AA1: 8 | AB1: 9
A2: 27 | B2: GHB-842 | C2: 1998 | D2: 7 | E2: B7 | F2: 12 | G2: 1 | H2: 0 | I2: 0 | J2: Nem természetes | K2: 4 | L2: nincs | M2: nincs | N2: =VLOOKUP(F2,$S$1:$AB$16,D2+1,0)*VLOOKUP(G2,$R$37:$S$49,2,0)*VLOOKUP(I2,$R$53:$S$59,2,0)*K2 -> 492724.96 | Q2: B10 | S2: 15 | T2: 58206 | U2: 38804 | V2: 38804 | W2: 41520 | X2: 44625 | Y2: 54326 | Z2: 58206 | AA2: 64027 | AB2: 64027
A3: 29 | B3: MZA-365 | C3: 2014 | D3: 4 | E3: B10 | F3: 15 | G3: 2 | H3: 28 | I3: 2 | J3: nő | K3: 1 | L3: nincs | M3: nincs | N3: =VLOOKUP(F3,$S$63:$AB$78,D3+1,0)*VLOOKUP(I3,$S$82:$AF$89,G3+1,0)*K3 -> 29897.94 | Q3: B9 | S3: 14 | T3: 64974 | U3: 43316 | V3: 43316 | W3: 46348 | X3: 49813 | Y3: 60642 | Z3: 64974 | AA3: 71471 | AB3: 71471
A4: 11 | B4: GSS-147 | C4: 1999 | D4: 7 | E4: B7 | F4: 12 | G4: 3 | H4: 0 | I4: 0 | J4: Nem természetes | K4: 4 | L4: nincs | M4: nincs | N4: =VLOOKUP(F4,$S$1:$AB$16,D4+1,0)*VLOOKUP(G4,$R$37:$S$49,2,0)*VLOOKUP(I4,$R$53:$S$59,2,0)*K4 -> 422335.68 | Q4: B8 | S4: 13 | T4: 66327 | U4: 44218 | V4: 44218 | W4: 47313 | X4: 50851 | Y4: 61905 | Z4: 66327 | AA4: 72960 | AB4: 72960
A5: 38 | B5: RFE-743 | C5: 2018 | D5: 2 | E5: B10 | F5: 15 | G5: 3 | H5: 73 | I5: 6 | J5: nő | K5: 1 | L5: nincs | M5: nincs | N5: =VLOOKUP(F5,$S$63:$AB$78,D5+1,0)*VLOOKUP(I5,$S$82:$AF$89,G5+1,0)*K5 -> 38950 | Q5: B7 | S5: 12 | T5: 67682 | U5: 45121 | V5: 45121 | W5: 48279 | X5: 51889 | Y5: 63169 | Z5: 67682 | AA5: 74450 | AB5: 74450
A6: 33 | B6: HAB-111 | C6: 2000 | D6: 2 | E6: B8 | F6: 13 | G6: 3 | H6: 0 | I6: 0 | J6: Nem természetes | K6: 4 | L6: nincs | M6: nincs | N6: =VLOOKUP(F6,$S$1:$AB$16,D6+1,0)*VLOOKUP(G6,$R$37:$S$49,2,0)*VLOOKUP(I6,$R$53:$S$59,2,0)*K6 -> 275920.32 | Q6: B6 | S6: 11 | T6: 69033 | U6: 46022 | V6: 46022 | W6: 49244 | X6: 52925 | Y6: 64431 | Z6: 69033 | AA6: 75936 | AB6: 75936
A7: 1 | B7: LAN-774 | C7: 2008 | D7: 3 | E7: B5 | F7: 10 | G7: 7 | H7: 40 | I7: 3 | J7: nő | K7: 1 | L7: nincs | M7: nincs | N7: 38984 | Q7: B5 | S7: 10 | T7: 73095 | U7: 48730 | V7: 48730 | W7: 52141 | X7: 56040 | Y7: 68222 | Z7: 73095 | AA7: 80405 | AB7: 80405
A8: 28 | B8: RAM-057 | C8: 2018 | D8: 3 | E8: B9 | F8: 14 | G8: 2 | H8: 69 | I8: 5 | J8: ffi | K8: 1 | L8: nincs | M8: nincs | N8: =VLOOKUP(F8,$S$63:$AB$78,D8+1,0)*VLOOKUP(I8,$S$82:$AF$89,G8+1,0)*K8 -> 39261.6 | Q8: B4 | S8: 9 | T8: 90692 | U8: 60461 | V8: 60461 | W8: 64693 | X8: 69530 | Y8: 84645 | Z8: 90692 | AA8: 99761 | AB8: 99761
A9: 10 | B9: MEF-520 | C9: 2011 | D9: 1 | E9: B4 | F9: 9 | G9: 6 | H9: 42 | I9: 3 | J9: ffi | K9: 1 | L9: nincs | M9: nincs | N9: 46333.8 | Q9: B3 | S9: 8 | T9: 115056 | U9: 76704 | V9: 76704 | W9: 82073 | X9: 88210 | Y9: 107386 | Z9: 115056 | AA9: 126562 | AB9: 126562
A10: 20 | B10: MKT-977 | C10: 2012 | D10: 3 | E10: B10 | F10: 15 | G10: 9 | H10: 40 | I10: 3 | J10: ffi | K10: 1 | L10: nincs | M10: nincs | N10: 46605.12 | Q10: B2 | S10: 7 | T10: 121826 | U10: 81217 | V10: 81217 | W10: 86902 | X10: 93400 | Y10: 113704 | Z10: 121826 | AA10: 134008 | AB10: 134008
A11: 31 | B11: MHH-100 | C11: 2012 | D11: 8 | E11: B10 | F11: 15 | G11: 6 | H11: 0 | I11: 0 | J11: Nem természetes | K11: 1 | L11: nincs | M11: nincs | N11: 47147.04 | Q11: B1 | S11: 6 | T11: 128594 | U11: 85729 | V11: 85729 | W11: 91730 | X11: 98588 | Y11: 120021 | Z11: 128594 | AA11: 141453 | AB11: 141453 | AH11: >10 | AI11: <10
A12: 42 | B12: HED-874 | C12: 2000 | D12: 3 | E12: B9 | F12: 14 | G12: 10 | H12: 60 | I12: 4 | J12: ffi | K12: 1 | L12: nincs | M12: nincs | N12: =VLOOKUP(F12,$S$1:$AB$16,D12+1,0)*VLOOKUP(G12,$R$37:$S$49,2,0)*VLOOKUP(I12,$R$53:$S$59,2,0)*K12 -> 50679.72 | Q12: A0 | S12: 5 | T12: 135360 | U12: 90240 | V12: 90240 | W12: 96557 | X12: 103776 | Y12: 126336 | Z12: 135360 | AA12: 148896 | AB12: 148896 | AG12: Teljesítmény | AH12: =VLOOKUP('INPUT-output'!$D$7,'Manuális adatbázis'!$Q$20:$R$28,2,FALSE) -> 7 | AI12: =VLOOKUP('INPUT-output'!$D$7,'Manuális adatbázis'!$Q$20:$R$28,2,FALSE) -> 7
A13: 12 | B13: LBD-337 | C13: 2009 | D13: 5 | E13: B8 | F13: 13 | G13: 5 | H13: 45 | I13: 3 | J13: nő | K13: 1 | L13: nincs | M13: nincs | N13: 50851 | Q13: M1 | S13: 4 | T13: 270722 | U13: 180481 | V13: 180481 | W13: 193115 | X13: 207553 | Y13: 252673 | Z13: 270722 | AA13: 297794 | AB13: 297794 | AG13: B/M | AH13: =VLOOKUP('INPUT-output'!$D$8,'Manuális adatbázis'!Q2:AB16,'Manuális adatbázis'!AH12+3,FALSE) -> 66327 | AI13: =VLOOKUP('INPUT-output'!$D$8,Q64:AB78,'Manuális adatbázis'!AI12+3,FALSE) -> 35902
A14: 21 | B14: MAA-002 | C14: 2019 | D14: 9 | E14: B8 | F14: 13 | G14: 5 | H14: 0 | I14: 0 | J14: Nem természetes | K14: 1 | L14: nincs | M14: nincs | N14: =VLOOKUP(F14,$S$63:$AB$78,D14+1,0)*VLOOKUP(I14,$S$82:$AF$89,G14+1,0)*K14 -> 56225.12 | Q14: M2 | S14: 3 | T14: 338402 | U14: 225601 | V14: 225601 | W14: 241393 | X14: 259441 | Y14: 315841 | Z14: 338402 | AA14: 372242 | AB14: 372242 | AG14: Kor | AH14: =VLOOKUP('INPUT-output'!$D$9,'Manuális adatbázis'!$Q$53:$S$59,3,FALSE) -> 1.15
A15: 22 | B15: IKC-899 | C15: 2002 | D15: 4 | E15: B5 | F15: 10 | G15: 8 | H15: 0 | I15: 0 | J15: Nem természetes | K15: 4 | L15: nincs | M15: nincs | N15: =VLOOKUP(F15,$S$1:$AB$16,D15+1,0)*VLOOKUP(G15,$R$37:$S$49,2,0)*VLOOKUP(I15,$R$53:$S$59,2,0)*K15 -> 406699.8 | Q15: M3 | S15: 2 | T15: 406082 | U15: 270721 | V15: 270721 | W15: 289671 | X15: 311329 | Y15: 379009 | Z15: 406082 | AA15: 446690 | AB15: 446690 | AG15: Lakhely | AH15: =VLOOKUP('INPUT-output'!$D$10,'Manuális adatbázis'!Q37:S49,3,FALSE) -> 1
A16: 19 | B16: SAC-650 | C16: 2019 | D16: 9 | E16: B3 | F16: 8 | G16: 4 | H16: 35 | I16: 3 | J16: ffi | K16: 1 | L16: nincs | M16: nincs | N16: =VLOOKUP(F16,$S$63:$AB$78,D16+1,0)*VLOOKUP(I16,$S$82:$AF$89,G16+1,0)*K16 -> 69050.16 | Q16: M4 | S16: 1 | T16: 676802 | U16: 451201 | V16: 451201 | W16: 482785 | X16: 518881 | Y16: 631681 | Z16: 676802 | AA16: 744482 | AB16: 744482 | AG16: Használat | AH16: =VLOOKUP('INPUT-output'!$D$11,'Manuális adatbázis'!Q32:S33,3,FALSE) -> 1
A17: 47 | B17: IZZ-999 | C17: 2002 | D17: 5 | E17: B1 | F17: 6 | G17: 9 | H17: 27 | I17: 2 | J17: nő | K17: 4 | L17: nincs | M17: nincs | N17: =VLOOKUP(F17,$S$1:$AB$16,D17+1,0)*VLOOKUP(G17,$R$37:$S$49,2,0)*VLOOKUP(I17,$R$53:$S$59,2,0)*K17 -> 634906.72 | AG17: Sum | AH17: =AH13*AH14*AH15*AH16 -> 76276.05 | AI17: =AI13*AH14*AH15*AH16 -> 41287.3
A18: 32 | B18: GZT-054 | C18: 1999 | D18: 3 | E18: B1 | F18: 6 | G18: 6 | H18: 36 | I18: 3 | J18: nő | K18: 1 | L18: nincs | M18: nincs | N18: 77156.1
A19: 34 | B19: MJC-579 | C19: 2012 | D19: 7 | E19: A0 | F19: 5 | G19: 10 | H19: 37 | I19: 3 | J19: nő | K19: 1 | L19: nincs | M19: nincs | N19: =VLOOKUP(F19,$S$63:$AB$78,D19+1,0)*VLOOKUP(I19,$S$82:$AF$89,G19+1,0)*K19 -> 103030.85 | Q19: Gépjármű kategória | U19: Bonus-Malus osztály
A20: 41 | B20: JKA-674 | C20: 2004 | D20: 4 | E20: B7 | F20: 12 | G20: 12 | H20: 0 | I20: 0 | J20: Nem természetes | K20: 4 | L20: nincs | M20: nincs | N20: =VLOOKUP(F20,$S$1:$AB$16,D20+1,0)*VLOOKUP(G20,$R$37:$S$49,2,0)*VLOOKUP(I20,$R$53:$S$59,2,0)*K20 -> 276155.88 | Q20: 0-5 kW között | R20: 1 | U20: B10 | V20: 10
A21: 6 | B21: NTK-555 | C21: 2014 | D21: 8 | E21: B2 | F21: 7 | G21: 11 | H21: 71 | I21: 6 | J21: ffi | K21: 1 | L21: nincs | M21: nincs | N21: =VLOOKUP(F21,$S$63:$AB$78,D21+1,0)*VLOOKUP(I21,$S$82:$AF$89,G21+1,0)*K21 -> 103132.75 | Q21: 6-37 kW között | R21: 2 | U21: B9 | V21: 9 | AE21: =TODAY() -> 2020-02-24
A22: 35 | B22: ICK-610 | C22: 2001 | D22: 3 | E22: A0 | F22: 5 | G22: 2 | H22: 30 | I22: 3 | J22: ffi | K22: 1 | L22: nincs | M22: nincs | N22: =VLOOKUP(F22,$S$1:$AB$16,D22+1,0)*VLOOKUP(G22,$R$37:$S$49,2,0)*VLOOKUP(I22,$R$53:$S$59,2,0)*K22 -> 117312 | Q22: 38-50 kW között | R22: 3 | U22: B8 | V22: 8
A23: 45 | B23: LCD-111 | C23: 2008 | D23: 4 | E23: A0 | F23: 5 | G23: 4 | H23: 73 | I23: 6 | J23: ffi | K23: 4 | L23: nincs | M23: nincs | N23: 552306.04 | Q23: 51-56 kW között | R23: 4 | U23: B7 | V23: 7 | AE23: =YEAR(AE21) -> 2020
A24: 13 | B24: JAH-687 | C24: 2003 | D24: 6 | E24: B3 | F24: 8 | G24: 12 | H24: 44 | I24: 3 | J24: nő | K24: 1 | L24: nincs | M24: nincs | N24: 118124.6 | Q24: 57-70 kW között | R24: 5 | U24: B6 | V24: 6 | AE24: =AE23-'INPUT-output'!D6 -> 7
A25: 48 | B25: HGG-633 | C25: 2000 | D25: 1 | E25: B1 | F25: 6 | G25: 4 | H25: 57 | I25: 4 | J25: nő | K25: 1 | L25: nincs | M25: nincs | N25: 127308.06 | Q25: 71-100 kW között | R25: 6 | U25: B5 | V25: 5
A26: 5 | B26: HZZ-997 | C26: 2001 | D26: 4 | E26: B3 | F26: 8 | G26: 11 | H26: 0 | I26: 0 | J26: Nem természetes | K26: 1 | L26: nincs | M26: nincs | N26: 128033.88 | Q26: 101-124 kW között | R26: 7 | U26: B4 | V26: 4
A27: 23 | B27: JCS-003 | C27: 2003 | D27: 1 | E27: M1 | F27: 4 | G27: 7 | H27: 73 | I27: 6 | J27: ffi | K27: 1 | L27: nincs | M27: nincs | N27: 281550.88 | Q27: 125-180 kW között | R27: 8 | U27: B3 | V27: 3
A28: 2 | B28: RZN-803 | C28: 2018 | D28: 5 | E28: M1 | F28: 4 | G28: 3 | H28: 22 | I28: 1 | J28: nő | K28: 1 | L28: nincs | M28: nincs | N28: =VLOOKUP(F28,$S$63:$AB$78,D28+1,0)*VLOOKUP(I28,$S$82:$AF$89,G28+1,0)*K28 -> 284504.64 | Q28: 180- kW fölött | R28: 9 | U28: B2 | V28: 2
A29: 43 | B29: IZT-960 | C29: 2001 | D29: 9 | E29: M1 | F29: 4 | G29: 12 | H29: 65 | I29: 4 | J29: nő | K29: 1 | L29: nincs | M29: nincs | N29: =VLOOKUP(F29,$S$1:$AB$16,D29+1,0)*VLOOKUP(G29,$R$37:$S$49,2,0)*VLOOKUP(I29,$R$53:$S$59,2,0)*K29 -> 294816.06 | U29: B1 | V29: 1
A30: 44 | B30: LZT-885 | C30: 2010 | D30: 9 | E30: B7 | F30: 12 | G30: 6 | H30: 24 | I30: 2 | J30: ffi | K30: 4 | L30: nincs | M30: nincs | N30: 308223 | U30: A0 | V30: 0
Q31: Használat jellege | S31: Szorzó | U31: M1 | V31: -1
A32: 26 | B32: NZT-479 | C32: 2016 | D32: 8 | E32: M1 | F32: 4 | G32: 8 | H32: 46 | I32: 3 | J32: ffi | K32: 1 | L32: nincs | M32: nincs | N32: =VLOOKUP(F32,$S$63:$AB$78,D32+1,0)*VLOOKUP(I32,$S$82:$AF$89,G32+1,0)*K32 -> 296359 | Q32: Normál | R32: 1 | S32: 1 | U32: M2 | V32: -2
A33: 17 | B33: MGF-940 | C33: 2012 | D33: 8 | E33: B5 | F33: 10 | G33: 11 | H33: 0 | I33: 0 | J33: Nem természetes | K33: 4 | L33: nincs | M33: nincs | N33: 456177 | Q33: Egyéb | R33: 2 | S33: 4 | U33: M3 | V33: -3
A34: 14 | B34: LDT-934 | C34: 2009 | D34: 1 | E34: M1 | F34: 4 | G34: 13 | H34: 29 | I34: 2 | J34: ffi | K34: 1 | L34: nincs | M34: nincs | N34: =VLOOKUP(F34,$S$1:$AB$16,D34+1,0)*VLOOKUP(G34,$R$37:$S$49,2,0)*VLOOKUP(I34,$R$53:$S$59,2,0)*K34 -> 311330.3 | U34: M4 | V34: -4
A35: 24 | B35: IYS-021 | C35: 2002 | D35: 5 | E35: M2 | F35: 3 | G35: 9 | H35: 51 | I35: 4 | J35: ffi | K35: 1 | L35: nincs | M35: nincs | N35: 326895.66
A36: 8 | B36: GPK-451 | C36: 1999 | D36: 5 | E36: M1 | F36: 4 | G36: 1 | H36: 27 | I36: 2 | J36: ffi | K36: 1 | L36: nincs | M36: nincs | N36: 334160.33 | Q36: Terület | S36: Szorzó
A37: 46 | B37: LFX-820 | C37: 2009 | D37: 9 | E37: M2 | F37: 3 | G37: 7 | H37: 72 | I37: 6 | J37: nő | K37: 1 | L37: nincs | M37: nincs | N37: 387131.68 | Q37: Terület I | R37: 1 | S37: 1.4
A38: 25 | B38: MLS-447 | C38: 2014 | D38: 2 | E38: M1 | F38: 4 | G38: 1 | H38: 0 | I38: 0 | J38: Nem természetes | K38: 4 | L38: nincs | M38: nincs | N38: =VLOOKUP(F38,$S$63:$AB$78,D38+1,0)*VLOOKUP(I38,$S$82:$AF$89,G38+1,0)*K38 -> 2445385.12 | Q38: Terület II | R38: 2 | S38: 1.3
A39: 30 | B39: NZZ-200 | C39: 2016 | D39: 1 | E39: M1 | F39: 4 | G39: 8 | H39: 71 | I39: 6 | J39: ffi | K39: 1 | L39: nincs | M39: nincs | N39: 403048.24 | Q39: Terület III | R39: 3 | S39: 1.2
A40: 49 | B40: PCD-652 | C40: 2016 | D40: 1 | E40: M1 | F40: 4 | G40: 10 | H40: 75 | I40: 6 | J40: ffi | K40: 1 | L40: nincs | M40: nincs | N40: 403048.24 | Q40: Terület IV | R40: 4 | S40: 1.1
A41: 18 | B41: LZZ-001 | C41: 2010 | D41: 1 | E41: M2 | F41: 3 | G41: 1 | H41: 60 | I41: 4 | J41: ffi | K41: 1 | L41: nincs | M41: nincs | N41: =VLOOKUP(F41,$S$1:$AB$16,D41+1,0)*VLOOKUP(G41,$R$37:$S$49,2,0)*VLOOKUP(I41,$R$53:$S$59,2,0)*K41 -> 426386.52 | Q41: Terület V | R41: 5 | S41: 1
A42: 7 | B42: IAE-841 | C42: 2001 | D42: 7 | E42: M1 | F42: 4 | G42: 9 | H42: 28 | I42: 2 | J42: ffi | K42: 1 | L42: nincs | M42: nincs | N42: 435862.42 | Q42: Terület VI | R42: 6 | S42: 0.9
A43: 36 | B43: PAA-887 | C43: 2016 | D43: 2 | E43: B8 | F43: 13 | G43: 7 | H43: 46 | I43: 3 | J43: nő | K43: 4 | L43: nincs | M43: nincs | N43: =VLOOKUP(F43,$S$63:$AB$78,D43+1,0)*VLOOKUP(I43,$S$82:$AF$89,G43+1,0)*K43 -> 77846.4 | Q43: Terület VII | R43: 7 | S43: 0.8
A44: 37 | B44: PEA-374 | C44: 2016 | D44: 4 | E44: B6 | F44: 11 | G44: 1 | H44: 0 | I44: 0 | J44: Nem természetes | K44: 4 | L44: nincs | M44: nincs | N44: 515970.08 | Q44: Budapest I | R44: 8 | S44: 1.5
A45: 50 | B45: LWW-940 | C45: 2009 | D45: 2 | E45: M2 | F45: 3 | G45: 8 | H45: 71 | I45: 6 | J45: ffi | K45: 1 | L45: nincs | M45: nincs | N45: =VLOOKUP(F45,$S$1:$AB$16,D45+1,0)*VLOOKUP(G45,$R$37:$S$49,2,0)*VLOOKUP(I45,$R$53:$S$59,2,0)*K45 -> 439921.95 | Q45: Budapest II | R45: 9 | S45: 1.4
A46: 40 | B46: JWA-127 | C46: 2005 | D46: 1 | E46: M1 | F46: 4 | G46: 2 | H46: 0 | I46: 0 | J46: Nem természetes | K46: 1 | L46: nincs | M46: nincs | N46: 457520.18 | Q46: Budapest III | R46: 10 | S46: 1.3
A47: 39 | B47: IEF-540 | C47: 2001 | D47: 8 | E47: M1 | F47: 4 | G47: 9 | H47: 27 | I47: 2 | J47: ffi | K47: 1 | L47: nincs | M47: nincs | N47: 479448.34 | Q47: Budapest IV | R47: 11 | S47: 1.2
A48: 15 | B48: PKC-990 | C48: 2017 | D48: 1 | E48: M2 | F48: 3 | G48: 9 | H48: 72 | I48: 6 | J48: nő | K48: 1 | L48: nincs | M48: nincs | N48: =VLOOKUP(F48,$S$63:$AB$78,D48+1,0)*VLOOKUP(I48,$S$82:$AF$89,G48+1,0)*K48 -> 512107.68 | Q48: Budapest V | R48: 12 | S48: 1.1
A49: 4 | B49: HZT-020 | C49: 2001 | D49: 8 | E49: M1 | F49: 4 | G49: 8 | H49: 29 | I49: 2 | J49: ffi | K49: 1 | L49: nincs | M49: nincs | N49: =VLOOKUP(F49,$S$1:$AB$16,D49+1,0)*VLOOKUP(G49,$R$37:$S$49,2,0)*VLOOKUP(I49,$R$53:$S$59,2,0)*K49 -> 513694.65 | Q49: Budapest VI | R49: 13 | S49: 1
A50: 16 | B50: SAA-471 | C50: 2019 | D50: 1 | E50: A0 | F50: 5 | G50: 13 | H50: 0 | I50: 0 | J50: Nem természetes | K50: 4 | L50: nincs | M50: nincs | N50: =VLOOKUP(F50,$S$63:$AB$78,D50+1,0)*VLOOKUP(I50,$S$82:$AF$89,G50+1,0)*K50 -> 579845.84
A51: 3 | B51: NSE-876 | C51: 2015 | D51: 3 | E51: M2 | F51: 3 | G51: 10 | H51: 71 | I51: 6 | J51: nő | K51: 1 | L51: nincs | M51: nincs | N51: 725485.88
A52: 9 | B52: LOP-987 | C52: 2009 | D52: 6 | E52: M2 | F52: 3 | G52: 8 | H52: 22 | I52: 1 | J52: ffi | K52: 1 | L52: nincs | M52: nincs | N52: =VLOOKUP(F52,$S$1:$AB$16,D52+1,0)*VLOOKUP(G52,$R$37:$S$49,2,0)*VLOOKUP(I52,$R$53:$S$59,2,0)*K52 -> 852770.7 | Q52: Kor | S52: Szorzó
Q53: -23, | R53: 1 | S53: 1.8
Q54: 24-29, | R54: 2 | S54: 1.15
Q55: 30-49, | R55: 3 | S55: 1
Q56: 50-65, | R56: 4 | S56: 0.9
Q57: 66-70, | R57: 5 | S57: 1
Q58: 71-, | R58: 6 | S58: 1.3
Q59: Nem természetes | R59: 0 | S59: 1.3
T63: 1 | U63: 2 | V63: 3 | W63: 4 | X63: 5 | Y63: 6 | Z63: 7 | AA63: 8 | AB63: 9
Q64: B10 | S64: 15 | T64: 27096 | U64: 19475 | V64: 27096 | W64: 27942 | X64: 31329 | Y64: 25402 | Z64: 29636 | AA64: 40644 | AB64: 42337
Q65: B9 | S65: 14 | T65: 31160 | U65: 24047 | V65: 31160 | W65: 29890 | X65: 33870 | Y65: 33870 | Z65: 32769 | AA65: 42930 | AB65: 44793
Q66: B8 | S66: 13 | T66: 35224 | U66: 28620 | V66: 35224 | W66: 31837 | X66: 36410 | Y66: 36410 | Z66: 35902 | AA66: 45216 | AB66: 47248
Q67: B7 | S67: 12 | T67: 39289 | U67: 33192 | V67: 39289 | W67: 33785 | X67: 38950 | Y67: 38950 | Z67: 39035 | AA67: 47502 | AB67: 49704
Q68: B6 | S68: 11 | T68: 43353 | U68: 37765 | V68: 43353 | W68: 35732 | X68: 41490 | Y68: 41490 | Z68: 42168 | AA68: 49788 | AB68: 52159
Q69: B5 | S69: 10 | T69: 47417 | U69: 42337 | V69: 47417 | W69: 37680 | X69: 44030 | Y69: 44030 | Z69: 45301 | AA69: 52075 | AB69: 54615
Q70: B4 | S70: 9 | T70: 51482 | U70: 46909 | V70: 51482 | W70: 39627 | X70: 46740 | Y70: 46232 | Z70: 48434 | AA70: 54361 | AB70: 57070
Q71: B3 | S71: 8 | T71: 55546 | U71: 51482 | V71: 55546 | W71: 41575 | X71: 48180 | Y71: 47163 | Z71: 51566 | AA71: 56647 | AB71: 59526
Q72: B2 | S72: 7 | T72: 59610 | U72: 56054 | V72: 59610 | W72: 43522 | X72: 49619 | Y72: 48095 | Z72: 54699 | AA72: 58933 | AB72: 61981
Q73: B1 | S73: 6 | T73: 63675 | U73: 60627 | V73: 63675 | W73: 45470 | X73: 51058 | Y73: 49026 | Z73: 57832 | AA73: 61219 | AB73: 64437
Q74: A0 | S74: 5 | T74: 67739 | U74: 65199 | V74: 67739 | W74: 47417 | X74: 52498 | Y74: 49958 | Z74: 60965 | AA74: 63506 | AB74: 66892
Q75: M1 | S75: 4 | T75: 169348 | U75: 169348 | V75: 169348 | W75: 169348 | X75: 169348 | Y75: 169348 | Z75: 169348 | AA75: 169348 | AB75: 169348
Q76: M2 | S76: 3 | T76: 304826 | U76: 321761 | V76: 304826 | W76: 234547 | X76: 254022 | Y76: 255715 | Z76: 358171 | AA76: 211685 | AB76: 459780
Q77: M3 | S77: 2 | T77: 396274 | U77: 418290 | V77: 396274 | W77: 342083 | X77: 424217 | Y77: 389077 | Z77: 473751 | AA77: 484335 | AB77: 626164
Q78: M4 | S78: 1 | T78: 515157 | U78: 543776 | V78: 515157 | W78: 449619 | X78: 694327 | Y78: 522439 | Z78: 531541 | AA78: 695174 | AB78: 709356
T81: Terület
T82: 1 | U82: 2 | V82: 3 | W82: 4 | X82: 5 | Y82: 6 | Z82: 7 | AA82: 8 | AB82: 9 | AC82: 10 | AD82: 11 | AE82: 12 | AF82: 13
R83: Kor | S83: 1 | T83: 2.14 | U83: 2.05 | V83: 1.68 | W83: 1.73 | X83: 1.79 | Y83: 0.97 | Z83: 1.15 | AA83: 2.27 | AB83: 2.11 | AC83: 1.75 | AD83: 2.28 | AE83: 1.48 | AF83: 1.46
S84: 2 | T84: 1.8 | U84: 1.07 | V84: 0.94 | W84: 1.12 | X84: 1.74 | Y84: 1.06 | Z84: 1.34 | AA84: 1.89 | AB84: 1.27 | AC84: 1.89 | AD84: 1.5 | AE84: 1.49 | AF84: 1.39
S85: 3 | T85: 2.5 | U85: 2.2 | V85: 1.29 | W85: 1.16 | X85: 1.05 | Y85: 0.9 | Z85: 0.68 | AA85: 1.75 | AB85: 1.72 | AC85: 1.69 | AD85: 1.38 | AE85: 1.56 | AF85: 1.15
S86: 4 | T86: 1.56 | U86: 1.47 | V86: 1.38 | W86: 1.26 | X86: 1.19 | Y86: 0.91 | Z86: 1.08 | AA86: 2.81 | AB86: 2.16 | AC86: 1.51 | AD86: 1.51 | AE86: 1.48 | AF86: 1.53
S87: 5 | T87: 1.6 | U87: 1.26 | V87: 1.6 | W87: 1.54 | X87: 1.11 | Y87: 1.23 | Z87: 0.78 | AA87: 3.5 | AB87: 3.5 | AC87: 2.03 | AD87: 1.99 | AE87: 1.85 | AF87: 1.77
S88: 6 | T88: 2.2 | U88: 1.94 | V88: 2 | W88: 1.83 | X88: 2.14 | Y88: 1.36 | Z88: 1.48 | AA88: 2.38 | AB88: 1.68 | AC88: 2.38 | AD88: 1.75 | AE88: 1.75 | AF88: 1.3
S89: 0 | T89: 3.61 | U89: 2.15 | V89: 3.61 | W89: 1.5 | X89: 1.19 | Y89: 1.16 | Z89: 2.02 | AA89: 2.25 | AB89: 1.84 | AC89: 1.82 | AD89: 2.19 | AE89: 1.46 | AF89: 2.14

Sheet Alapdíj
A1: Személygépkocsik (M1 gépjármű-kategória) éves alapdíja
A3: I./A díjszabás | C3: Gépjármű-kategória (kW)
A4: Bonus-malus osztály | C4: 0 és 5 kW között | D4: 6 és 37 kW között | E4: 38 és 50 kW között | F4: 51 és 56 kW között | G4: 57 és 70 kW között | H4: 71 és 100 kW között | I4: 101 és 124 kW között | J4: 125 és 180 kW között | K4: 180 kW fölött
C5: 1 | D5: 2 | E5: 3 | F5: 4 | G5: 5 | H5: 6 | I5: 7 | J5: 8 | K5: 9
A6: B10 | B6: 10 | C6: 58206 | D6: 38804 | E6: 38804 | F6: 41520 | G6: 44625 | H6: 54326 | I6: 58206 | J6: 64027 | K6: 64027
A7: B09 | B7: 9 | C7: 64974 | D7: 43316 | E7: 43316 | F7: 46348 | G7: 49813 | H7: 60642 | I7: 64974 | J7: 71471 | K7: 71471
A8: B08 | B8: 8 | C8: 66327 | D8: 44218 | E8: 44218 | F8: 47313 | G8: 50851 | H8: 61905 | I8: 66327 | J8: 72960 | K8: 72960
A9: B07 | B9: 7 | C9: 67682 | D9: 45121 | E9: 45121 | F9: 48279 | G9: 51889 | H9: 63169 | I9: 67682 | J9: 74450 | K9: 74450
A10: B06 | B10: 6 | C10: 69033 | D10: 46022 | E10: 46022 | F10: 49244 | G10: 52925 | H10: 64431 | I10: 69033 | J10: 75936 | K10: 75936
A11: B05 | B11: 5 | C11: 73095 | D11: 48730 | E11: 48730 | F11: 52141 | G11: 56040 | H11: 68222 | I11: 73095 | J11: 80405 | K11: 80405
A12: B04 | B12: 4 | C12: 90692 | D12: 60461 | E12: 60461 | F12: 64693 | G12: 69530 | H12: 84645 | I12: 90692 | J12: 99761 | K12: 99761
A13: B03 | B13: 3 | C13: 115056 | D13: 76704 | E13: 76704 | F13: 82073 | G13: 88210 | H13: 107386 | I13: 115056 | J13: 126562 | K13: 126562
A14: B02 | B14: 2 | C14: 121826 | D14: 81217 | E14: 81217 | F14: 86902 | G14: 93400 | H14: 113704 | I14: 121826 | J14: 134008 | K14: 134008
A15: B01 | B15: 1 | C15: 128594 | D15: 85729 | E15: 85729 | F15: 91730 | G15: 98588 | H15: 120021 | I15: 128594 | J15: 141453 | K15: 141453
A16: A00 | B16: 0 | C16: 135360 | D16: 90240 | E16: 90240 | F16: 96557 | G16: 103776 | H16: 126336 | I16: 135360 | J16: 148896 | K16: 148896
A17: M01 | B17: -1 | C17: 270722 | D17: 180481 | E17: 180481 | F17: 193115 | G17: 207553 | H17: 252673 | I17: 270722 | J17: 297794 | K17: 297794
A18: M02 | B18: -2 | C18: 338402 | D18: 225601 | E18: 225601 | F18: 241393 | G18: 259441 | H18: 315841 | I18: 338402 | J18: 372242 | K18: 372242
A19: M03 | B19: -3 | C19: 406082 | D19: 270721 | E19: 270721 | F19: 289671 | G19: 311329 | H19: 379009 | I19: 406082 | J19: 446690 | K19: 446690
A20: M04 | B20: -4 | C20: 676802 | D20: 451201 | E20: 451201 | F20: 482785 | G20: 518881 | H20: 631681 | I20: 676802 | J20: 744482 | K20: 744482

Sheet Képlet
A1: I. KÉPLET
A2: KGFB Részdíj = Gépjármű-kategória és Bonus-malus szerinti alapdíj x Terület szerinti szorzó x Szerződő kora szerinti szorzó x Használat, jármű jellege szerinti szorzó x Kedvezményszorzó összesen x Károkozói pótdíj
A3: KGFB díj összesen:
A4: Ha a (KGFB Részdíj x Díjfizetési ütem szerinti szorzó) szorzat értéke
A6: a) alacsonyabb, mint 20 900 Ft, akkor a KGFB díj összesen = 20 900 Ft
A8: b) magasabb, mint 59 900 Ft, és a személygépkocsi normál üzemeltetésű, és a szerződés B04-től B10-ig terjedő bonus-malus osztályban van, valamint károkozói faktor nem került alkalmazásra, akkor a KGFB díj összesen = 59 900 Ft
A10: c) magasabb, mint 129 900 Ft, a személygépkocsi normál üzemeltetésű, és a szerződés A00-tól B10-ig terjedő bonus-malus osztályban van, valamint károkozói faktor nem került alkalmazásra, és nem a megelőző b) pontban szereplő díjszámítás vonatkozik a szerződésre, akkor a KGFB díj összesen = 129 900 Ft,
A12: d) magasabb, mint 259 900 Ft, a személygépkocsi normál üzemeltetésű, és a szerződés A00-tól B10-ig terjedő bonus-malus osztályban van, és nem a megelőző c) pontban szereplő díjszámítás vonatkozik a szerződésre, akkor a KGFB díj összesen = 259 900 Ft,
A14: egyébként a KGFB díj összesen: a KGFB Részdíj x Díjfizetési ütem szerinti szorzó értéke.
A18: II. KÉPLET
A19: KGFB Részdíj = Gépjármű-kategória és Bonus-malus osztály szerinti alapdíj x Szerződő kora és Területi kategória szerinti szorzó x Használat, jármű jellege szerinti szorzó x Kedvezményszorzó összesen x Károkozói pótdíj
A20: KGFB díj összesen:
A21: Ha a (KGFB Részdíj x Díjfizetési ütem szerinti szorzó) szorzat értéke
A23: a) alacsonyabb, mint 20 900 Ft, akkor a KGFB díj összesen = 20 900 Ft
A25: b) magasabb, mint 59 900 Ft, és a személygépkocsi normál üzemeltetésű, és a szerződés B04-től B10-ig terjedő bonus-malus osztályban van, valamint károkozói faktor nem került alkalmazásra, akkor a KGFB díj összesen = 59 900 Ft
A27: c) magasabb, mint 129 900 Ft, a személygépkocsi normál üzemeltetésű, és a szerződés A00-tól B10-ig terjedő bonus-malus osztályban van, valamint károkozói faktor nem került alkalmazásra, és nem a megelőző b) pontban szereplő díjszámítás vonatkozik a szerződésre, akkor a KGFB díj összesen = 129 900 Ft,
A29: d) magasabb, mint 259 900 Ft, a személygépkocsi normál üzemeltetésű, és a szerződés A00-tól B10-ig terjedő bonus-malus osztályban van, és nem a megelőző c) pontban szereplő díjszámítás vonatkozik a szerződésre, akkor a KGFB díj összesen = 259 900 Ft,
A31: egyébként a KGFB díj összesen: a KGFB Részdíj x Díjfizetési ütem szerinti szorzó értéke.

Sheet Területi szorzó
A1: Területi szorzók
A2: Budapest kerületek szerint | AN2: Szorzó
A3: VIII. | AN3: 1.5
A4: I. | C4: VI. | E4: IX. | G4: XIII. | AN4: 1.4
A5: VII. | C5: X. | E5: XII. | G5: XV. | I5: XIX. | K5: XX. | M5: XXI. | AN5: 1.3
A6: II. | C6: IV. | E6: XIV. | G6: XVII. | I6: XVIII. | K6: XXII. | AN6: 1.2
A7: V. | C7: XI. | E7: XVI. | G7: XXIII. | AN7: 1.1
A8: III. | AN8: 1
A9: Terület I.
A10: 2091 | B10: 7720 | AN10: 1.4
A11: Terület II.
A12: 2013 | B12: 2014 | D12: 2015 | F12: 2016 | H12: 2017 | J12: 2080 | L12: 2081 | N12: 2083 | P12: 2084 | R12: 2085 | T12: 2086 | V12: 2087 | X12: 2090 | Z12: 2092 | AB12: 2093 | AD12: 2094 | AF12: 2095 | AH12: 2096 | AJ12: 2097 | AL12: 2098 | AN12: 1.3
A13: 2099
A14: Terület III.
A15: 2000 | B15: 2009 | D15: 2011 | F15: 2030 | H15: 2031 | J15: 2032 | L15: 2033 | N15: 2035 | P15: 2036 | R15: 2038 | T15: 2039 | V15: 2040 | X15: 2041 | Z15: 2042 | AB15: 2043 | AD15: 2045 | AF15: 2046 | AH15: 2049 | AJ15: 2051 | AL15: 2058 | AN15: 1.2
A16: 2111 | B16: 2112 | D16: 2118 | F16: 2119 | H16: 2209 | J16: 2211 | L16: 2212 | N16: 2214 | P16: 2215 | R16: 2216 | T16: 2217 | V16: 2220 | X16: 2233 | Z16: 2234 | AB16: 2251 | AD16: 2310 | AF16: 2311 | AH16: 2313 | AJ16: 2315 | AL16: 2351
A17: 2360 | B17: 2363 | D17: 2364 | F17: 2365 | H17: 2366 | J17: 2367 | L17: 7300 | N17: 7305 | P17: 7600 | R17: 7601 | T17: 7602 | V17: 7607 | X17: 7614 | Z17: 7615 | AB17: 7621 | AD17: 7622 | AF17: 7623 | AH17: 7624 | AJ17: 7625 | AL17: 7626
A18: 7627 | B18: 7628 | D18: 7629 | F18: 7630 | H18: 7631 | J18: 7632 | L18: 7633 | N18: 7634 | P18: 7635 | R18: 7636 | T18: 7639 | V18: 7646 | X18: 7691 | Z18: 7693 | AB18: 8000 | AD18: 8001 | AF18: 8002 | AH18: 8003 | AJ18: 8007 | AL18: 8012
A19: 8019 | B19: 8060 | D19: 8061 | F19: 8100 | H19: 8101 | J19: 8103 | L19: 8104 | N19: 8700 | P19: 8701 | R19: 8709 | T19: 8714 | V19: 9700 | X19: 9701 | Z19: 9707 | AB19: 9719 | AD19: 2071
A20: Terület IV.
A21: 2021 | B21: 2022 | D21: 2023 | F21: 2024 | H21: 2025 | J21: 2026 | L21: 2330 | N21: 2332 | P21: 2335 | R21: 2336 | T21: 2400 | V21: 2401 | X21: 2403 | Z21: 2405 | AB21: 2407 | AD21: 2408 | AF21: 4000 | AH21: 4001 | AJ21: 4002 | AL21: 4003 | AN21: 1.1
A22: 4010 | B22: 4011 | D22: 4012 | F22: 4014 | H22: 4015 | J22: 4022 | L22: 4024 | N22: 4025 | P22: 4026 | R22: 4027 | T22: 4028 | V22: 4029 | X22: 4030 | Z22: 4031 | AB22: 4032 | AD22: 4033 | AF22: 4034 | AH22: 4046 | AJ22: 4063 | AL22: 4078
A23: 4079 | B23: 4200 | D23: 4225 | F23: 4246 | H23: 4400 | J23: 4401 | L23: 4402 | N23: 4405 | P23: 4407 | R23: 4412 | T23: 4413 | V23: 4431 | X23: 4432 | Z23: 4433 | AB23: 4435 | AD23: 4481 | AF23: 4551 | AH23: 5600 | AJ23: 5623 | AL23: 5671
A24: 8200 | B24: 8201 | D24: 8411 | F24: 8412 | H24: 8500 | J24: 8501 | L24: 8511 | N24: 8591 | P24: 8598 | R24: 8600 | T24: 8609 | V24: 8611 | X24: 8630 | Z24: 8691 | AB24: 9000 | AD24: 9002 | AF24: 9004 | AH24: 9008 | AJ24: 9010 | AL24: 9011
A25: 9012 | B25: 9013 | D25: 9019 | F25: 9021 | H25: 9022 | J25: 9023 | L25: 9024 | N25: 9025 | P25: 9026 | R25: 9027 | T25: 9028 | V25: 9029 | X25: 9030 | Z25: 9400 | AB25: 9407 | AD25: 9408 | AF25: 9494
A26: Terület V.
A27: 2060 | B27: 2483 | D27: 2484 | F27: 2485 | H27: 3100 | J27: 3102 | L27: 3104 | N27: 3109 | P27: 3121 | R27: 3500 | T27: 3501 | V27: 3504 | X27: 3508 | Z27: 3509 | AB27: 3510 | AD27: 3511 | AF27: 3515 | AH27: 3516 | AJ27: 3517 | AL27: 3518 | AN27: 1
A28: 3519 | B28: 3521 | D28: 3523 | F28: 3524 | H28: 3525 | J28: 3526 | L28: 3527 | N28: 3528 | P28: 3529 | R28: 3530 | T28: 3531 | V28: 3532 | X28: 3533 | Z28: 3534 | AB28: 3535 | AD28: 3558 | AF28: 6600 | AH28: 6700 | AJ28: 6701 | AL28: 6706
A29: 6710 | B29: 6720 | D29: 6721 | F29: 6722 | H29: 6723 | J29: 6724 | L29: 6725 | N29: 6726 | P29: 6727 | R29: 6728 | T29: 6729 | V29: 6753 | X29: 6757 | Z29: 6771 | AB29: 6791 | AD29: 8192 | AF29: 8220 | AH29: 8222 | AJ29: 8223 | AL29: 8297
A30: 8300
A31: Terület VI.
A32: 2006 | B32: 2255 | D32: 2300 | F32: 2301 | H32: 2314 | J32: 2316 | L32: 2318 | N32: 2700 | P32: 2701 | R32: 2711 | T32: 2712 | V32: 2713 | X32: 2723 | Z32: 2724 | AB32: 2730 | AD32: 2735 | AF32: 2736 | AH32: 2737 | AJ32: 2738 | AL32: 2740 | AN32: 0.9
A33: 2745 | B33: 2746 | D33: 2747 | F33: 2750 | H33: 2755 | J33: 2764 | L33: 2765 | N33: 2766 | P33: 2769 | R33: 6000 | T33: 6001 | V33: 6008 | X33: 6011 | Z33: 6044 | AB33: 6400 | AD33: 6401 | AF33: 8171 | AH33: 8431
A34: Terület VII.
A35: 2089 | B35: 2235 | D35: 2241 | F35: 2242 | H35: 2243 | J35: 2244 | L35: 2252 | N35: 2253 | P35: 2254 | R35: 2375 | T35: 2376 | V35: 2377 | X35: 2381 | Z35: 2440 | AB35: 2461 | AD35: 2600 | AF35: 2601 | AH35: 2612 | AJ35: 2613 | AL35: 2614 | AN35: 0.8
A36: 2615 | B36: 2621 | D36: 2623 | F36: 2624 | H36: 2625 | J36: 2626 | L36: 2627 | N36: 2628 | P36: 2629 | R36: 2631 | T36: 2632 | V36: 2633 | X36: 2634 | Z36: 2635 | AB36: 2636 | AD36: 2637 | AF36: 2638 | AH36: 2639 | AJ36: 2681 | AL36: 2682
A37: 2683 | B37: 2721 | D37: 2760 | F37: 2767 | H37: 2768
A38: Jász-Nagykun-Szolnok, Baranya, Győr-Moson-Sopron, Komárom-Esztergom, Pest, Somogy, Tolna, Vas megyéknek a fentiekben fel nem sorolt irányítószámú helységei | AN38: 1
A39: Békés, Borsod-Abaúj-Zemplén, Fejér, Hajdú-Bihar, Heves, Nógrád, Szabolcs-Szatmár-Bereg, Veszprém, Zala megyéknek a fentiekben fel nem sorolt irányítószámú helységei | AN39: 0.9
A40: Bács-Kiskun, Csongrád megyéknek a fentiekben fel nem sorolt irányítószámú helységei | AN40: 0.8

Sheet Életkor szorzó
A1: Szerződő kora (év) | B1: Szorzó
A3: 23 éves korig | B3: 1.8
A4: 24 és 29 év között | B4: 1.15
A5: 30 és 49 év között | B5: 1
A6: 50 és 65 év között | B6: 0.9
A7: 66 és 70 év között | B7: 1
A8: 71 év és felette | B8: 1.3
A9: Nem természetes személy | B9: 1.3
A10: A Szerződő korát úgy kell meghatározni, hogy a díjszámítás alapjául szolgáló biztosítási

Sheet Alapdíj II
A1: II. Díjszabás éves alapdíjai
B3: Személygépkocsik (M1 gépjármű-kategória) (kW)
A4: Bonus-malus osztály | B4: 0 és 5 kW között | C4: 6 és 37 kW között | D4: 38 és 50 kW között | E4: 51 és 56 kW között | F4: 57 és 70 kW között | G4: 71 és 100 kW között | H4: 101 és 124 kW között | I4: 125 és 180 kW között | J4: 180 kW fölött
A5: B10 | B5: 27096 | C5: 19475 | D5: 27096 | E5: 27942 | F5: 31329 | G5: 25402 | H5: 29636 | I5: 40644 | J5: 42337
A6: B09 | B6: 31160 | C6: 24047 | D6: 31160 | E6: 29890 | F6: 33870 | G6: 33870 | H6: 32769 | I6: 42930 | J6: 44793
A7: B08 | B7: 35224 | C7: 28620 | D7: 35224 | E7: 31837 | F7: 36410 | G7: 36410 | H7: 35902 | I7: 45216 | J7: 47248
A8: B07 | B8: 39289 | C8: 33192 | D8: 39289 | E8: 33785 | F8: 38950 | G8: 38950 | H8: 39035 | I8: 47502 | J8: 49704
A9: B06 | B9: 43353 | C9: 37765 | D9: 43353 | E9: 35732 | F9: 41490 | G9: 41490 | H9: 42168 | I9: 49788 | J9: 52159
A10: B05 | B10: 47417 | C10: 42337 | D10: 47417 | E10: 37680 | F10: 44030 | G10: 44030 | H10: 45301 | I10: 52075 | J10: 54615
A11: B04 | B11: 51482 | C11: 46909 | D11: 51482 | E11: 39627 | F11: 46740 | G11: 46232 | H11: 48434 | I11: 54361 | J11: 57070
A12: B03 | B12: 55546 | C12: 51482 | D12: 55546 | E12: 41575 | F12: 48180 | G12: 47163 | H12: 51566 | I12: 56647 | J12: 59526
A13: B02 | B13: 59610 | C13: 56054 | D13: 59610 | E13: 43522 | F13: 49619 | G13: 48095 | H13: 54699 | I13: 58933 | J13: 61981
A14: B01 | B14: 63675 | C14: 60627 | D14: 63675 | E14: 45470 | F14: 51058 | G14: 49026 | H14: 57832 | I14: 61219 | J14: 64437
A15: A00 | B15: 67739 | C15: 65199 | D15: 67739 | E15: 47417 | F15: 52498 | G15: 49958 | H15: 60965 | I15: 63506 | J15: 66892
A16: M01 | B16: 169348 | C16: 169348 | D16: 169348 | E16: 169348 | F16: 169348 | G16: 169348 | H16: 169348 | I16: 169348 | J16: 169348
A17: M02 | B17: 304826 | C17: 321761 | D17: 304826 | E17: 234547 | F17: 254022 | G17: 255715 | H17: 358171 | I17: 211685 | J17: 459780
A18: M03 | B18: 396274 | C18: 418290 | D18: 396274 | E18: 342083 | F18: 424217 | G18: 389077 | H18: 473751 | I18: 484335 | J18: 626164
A19: M04 | B19: 515157 | C19: 543776 | D19: 515157 | E19: 449619 | F19: 694327 | G19: 522439 | H19: 531541 | I19: 695174 | J19: 709356

Sheet Szerződő kora - Területi szorzó
A1: Szerződő kora (év) | B1: Területi kategória | C1: Területi kategória | D1: Területi kategória | E1: Területi kategória | F1: Területi kategória | G1: Területi kategória | H1: Területi kategória | I1: Területi kategória | J1: Területi kategória | K1: Területi kategória | L1: Területi kategória | M1: Területi kategória | N1: Területi kategória
B2: Budapest I. | C2: Budapest II. | D2: Budapest III. | E2: Budapest IV. | F2: Budapest V. | G2: Budapest VI. | H2: Terület I. | I2: Terület II. | J2: Terület III. | K2: Terület IV. | L2: Terület V. | M2: Terület VI. | N2: Terület VII.
A3: 23 éves korig | B3: 2.27 | C3: 2.11 | D3: 1.75 | E3: 2.28 | F3: 1.48 | G3: 1.46 | H3: 2.14 | I3: 2.05 | J3: 1.68 | K3: 1.73 | L3: 1.79 | M3: 0.97 | N3: 1.15
A4: 24 és 29 év között | B4: 1.89 | C4: 1.27 | D4: 1.89 | E4: 1.5 | F4: 1.49 | G4: 1.39 | H4: 1.8 | I4: 1.07 | J4: 0.94 | K4: 1.12 | L4: 1.74 | M4: 1.06 | N4: 1.34
A5: 30 és 49 év között | B5: 1.75 | C5: 1.72 | D5: 1.69 | E5: 1.38 | F5: 1.56 | G5: 1.15 | H5: 2.5 | I5: 2.2 | J5: 1.29 | K5: 1.16 | L5: 1.05 | M5: 0.9 | N5: 0.68
A6: 50 és 65 év között | B6: 2.81 | C6: 2.16 | D6: 1.51 | E6: 1.51 | F6: 1.48 | G6: 1.53 | H6: 1.56 | I6: 1.47 | J6: 1.38 | K6: 1.26 | L6: 1.19 | M6: 0.91 | N6: 1.08
A7: 66 és 70 év között | B7: 3.5 | C7: 3.5 | D7: 2.03 | E7: 1.99 | F7: 1.85 | G7: 1.77 | H7: 1.6 | I7: 1.26 | J7: 1.6 | K7: 1.54 | L7: 1.11 | M7: 1.23 | N7: 0.78
A8: 71 év és felette | B8: 2.38 | C8: 1.68 | D8: 2.38 | E8: 1.75 | F8: 1.75 | G8: 1.3 | H8: 2.2 | I8: 1.94 | J8: 2 | K8: 1.83 | L8: 2.14 | M8: 1.36 | N8: 1.48
A9: Nem természetes személy | B9: 2.25 | C9: 1.84 | D9: 1.82 | E9: 2.19 | F9: 1.46 | G9: 2.14 | H9: 3.61 | I9: 2.15 | J9: 3.61 | K9: 1.5 | L9: 1.19 | M9: 1.16 | N9: 2.02
A10: A Szerződő korát úgy kell meghatározni, hogy a díjszámítás alapjául szolgáló biztosítási
A11: időszak első napjának évszámából ki kell vonni a Szerződő születési évszámát.
A13: Szerződő kora (év) | B13: Területi kategória | C13: Területi kategória | D13: Területi kategória | E13: Területi kategória | F13: Területi kategória | G13: Területi kategória | H13: Területi kategória
B14: Terület I. | C14: Terület II. | D14: Terület III. | E14: Terület IV. | F14: Terület V. | G14: Terület VI. | H14: Terület VII.
A15: 23 éves korig | B15: 2.14 | C15: 2.05 | D15: 1.68 | E15: 1.73 | F15: 1.79 | G15: 0.97 | H15: 1.15
A16: 24 és 29 év között | B16: 1.8 | C16: 1.07 | D16: 0.94 | E16: 1.12 | F16: 1.74 | G16: 1.06 | H16: 1.34
A17: 30 és 49 év között | B17: 2.5 | C17: 2.2 | D17: 1.29 | E17: 1.16 | F17: 1.05 | G17: 0.9 | H17: 0.68
A18: 50 és 65 év között | B18: 1.56 | C18: 1.47 | D18: 1.38 | E18: 1.26 | F18: 1.19 | G18: 0.91 | H18: 1.08
A19: 66 és 70 év között | B19: 1.6 | C19: 1.26 | D19: 1.6 | E19: 1.54 | F19: 1.11 | G19: 1.23 | H19: 0.78
A20: 71 év és felette | B20: 2.2 | C20: 1.94 | D20: 2 | E20: 1.83 | F20: 2.14 | G20: 1.36 | H20: 1.48
A21: Nem természetes személy | B21: 3.61 | C21: 2.15 | D21: 3.61 | E21: 1.5 | F21: 1.19 | G21: 1.16 | H21: 2.02
A22: A Szerződő korát úgy kell meghatározni, hogy a díjszámítás alapjául szolgáló biztosítási
A23: időszak első napjának évszámából ki kell vonni a Szerződő születési évszámát.

Sheet Területi kategóriák
A1: Budapest területi kategóriák kerületek szerint
A2: Területi kategória Budapest I. | E2: VIII.
A3: Területi kategória Budapest II. | E3: I. | G3: VI. | I3: IX. | K3: XIII.
A4: Területi kategória Budapest III. | E4: VII. | G4: X. | I4: XII. | K4: XV. | M4: XIX. | O4: XX. | Q4: XXI.
A5: Területi kategória Budapest IV. | E5: II. | G5: IV. | I5: XIV. | K5: XVII. | M5: XVIII. | O5: XXII.
A6: Területi kategória Budapest V. | E6: V. | G6: XI. | I6: XVI. | K6: XXIII.
A7: Területi kategória Budapest VI. | E7: III.
A8: Terület I.
A9: 2091 | B9: 7720
A10: Terület II.
A11: 2013 | B11: 2014 | C11: 2015 | D11: 2016 | F11: 2017 | H11: 2080 | J11: 2081 | L11: 2083 | N11: 2084 | P11: 2085 | R11: 2086 | T11: 2087 | V11: 2090 | X11: 2092 | Z11: 2093 | AB11: 2094 | AD11: 2095 | AF11: 2096 | AH11: 2097 | AJ11: 2098
A12: 2099
A13: Terület III.
A14: 2000 | B14: 2009 | C14: 2011 | D14: 2030 | F14: 2031 | H14: 2032 | J14: 2033 | L14: 2035 | N14: 2036 | P14: 2038 | R14: 2039 | T14: 2040 | V14: 2041 | X14: 2042 | Z14: 2043 | AB14: 2045 | AD14: 2046 | AF14: 2049 | AH14: 2051 | AJ14: 2058
A15: 2111 | B15: 2112 | C15: 2118 | D15: 2119 | F15: 2209 | H15: 2211 | J15: 2212 | L15: 2214 | N15: 2215 | P15: 2216 | R15: 2217 | T15: 2220 | V15: 2233 | X15: 2234 | Z15: 2251 | AB15: 2310 | AD15: 2311 | AF15: 2313 | AH15: 2315 | AJ15: 2351
A16: 2360 | B16: 2363 | C16: 2364 | D16: 2365 | F16: 2366 | H16: 2367 | J16: 7300 | L16: 7305 | N16: 7600 | P16: 7601 | R16: 7602 | T16: 7607 | V16: 7614 | X16: 7615 | Z16: 7621 | AB16: 7622 | AD16: 7623 | AF16: 7624 | AH16: 7625 | AJ16: 7626
A17: 7627 | B17: 7628 | C17: 7629 | D17: 7630 | F17: 7631 | H17: 7632 | J17: 7633 | L17: 7634 | N17: 7635 | P17: 7636 | R17: 7639 | T17: 7646 | V17: 7691 | X17: 7693 | Z17: 8000 | AB17: 8001 | AD17: 8002 | AF17: 8003 | AH17: 8007 | AJ17: 8012
A18: 8019 | B18: 8060 | C18: 8061 | D18: 8100 | F18: 8101 | H18: 8103 | J18: 8104 | L18: 8700 | N18: 8701 | P18: 8709 | R18: 8714 | T18: 9700 | V18: 9701 | X18: 9707 | Z18: 9719 | AB18: 2071
A19: Terület IV.
A20: 2021 | B20: 2022 | C20: 2023 | D20: 2024 | F20: 2025 | H20: 2026 | J20: 2330 | L20: 2332 | N20: 2335 | P20: 2336 | R20: 2400 | T20: 2401 | V20: 2403 | X20: 2405 | Z20: 2407 | AB20: 2408 | AD20: 4000 | AF20: 4001 | AH20: 4002 | AJ20: 4003
A21: 4010 | B21: 4011 | C21: 4012 | D21: 4014 | F21: 4015 | H21: 4022 | J21: 4024 | L21: 4025 | N21: 4026 | P21: 4027 | R21: 4028 | T21: 4029 | V21: 4030 | X21: 4031 | Z21: 4032 | AB21: 4033 | AD21: 4034 | AF21: 4046 | AH21: 4063 | AJ21: 4078
A22: 4079 | B22: 4200 | C22: 4225 | D22: 4246 | F22: 4400 | H22: 4401 | J22: 4402 | L22: 4405 | N22: 4407 | P22: 4412 | R22: 4413 | T22: 4431 | V22: 4432 | X22: 4433 | Z22: 4435 | AB22: 4481 | AD22: 4551 | AF22: 5600 | AH22: 5623 | AJ22: 5671
A23: 8200 | B23: 8201 | C23: 8411 | D23: 8412 | F23: 8500 | H23: 8501 | J23: 8511 | L23: 8591 | N23: 8598 | P23: 8600 | R23: 8609 | T23: 8611 | V23: 8630 | X23: 8691 | Z23: 9000 | AB23: 9002 | AD23: 9004 | AF23: 9008 | AH23: 9010 | AJ23: 9011
A24: 9012 | B24: 9013 | C24: 9019 | D24: 9021 | F24: 9022 | H24: 9023 | J24: 9024 | L24: 9025 | N24: 9026 | P24: 9027 | R24: 9028 | T24: 9029 | V24: 9030 | X24: 9400 | Z24: 9407 | AB24: 9408 | AD24: 9494
A25: Terület V.
A26: 2060 | B26: 2483 | C26: 2484 | D26: 2485 | F26: 3100 | H26: 3102 | J26: 3104 | L26: 3109 | N26: 3121 | P26: 3500 | R26: 3501 | T26: 3504 | V26: 3508 | X26: 3509 | Z26: 3510 | AB26: 3511 | AD26: 3515 | AF26: 3516 | AH26: 3517 | AJ26: 3518
A27: 3519 | B27: 3521 | C27: 3523 | D27: 3524 | F27: 3525 | H27: 3526 | J27: 3527 | L27: 3528 | N27: 3529 | P27: 3530 | R27: 3531 | T27: 3532 | V27: 3533 | X27: 3534 | Z27: 3535 | AB27: 3558 | AD27: 6600 | AF27: 6700 | AH27: 6701 | AJ27: 6706
A28: 6710 | B28: 6720 | C28: 6721 | D28: 6722 | F28: 6723 | H28: 6724 | J28: 6725 | L28: 6726 | N28: 6727 | P28: 6728 | R28: 6729 | T28: 6753 | V28: 6757 | X28: 6771 | Z28: 6791 | AB28: 8192 | AD28: 8220 | AF28: 8222 | AH28: 8223 | AJ28: 8297
A29: 8300
A30: Terület VI.
A31: 2006 | B31: 2255 | C31: 2300 | D31: 2301 | F31: 2314 | H31: 2316 | J31: 2318 | L31: 2700 | N31: 2701 | P31: 2711 | R31: 2712 | T31: 2713 | V31: 2723 | X31: 2724 | Z31: 2730 | AB31: 2735 | AD31: 2736 | AF31: 2737 | AH31: 2738 | AJ31: 2740
A32: 2745 | B32: 2746 | C32: 2747 | D32: 2750 | F32: 2755 | H32: 2764 | J32: 2765 | L32: 2766 | N32: 2769 | P32: 6000 | R32: 6001 | T32: 6008 | V32: 6011 | X32: 6044 | Z32: 6400 | AB32: 6401 | AD32: 8171 | AF32: 8431
A33: Terület VII.
A34: 2089 | B34: 2235 | C34: 2241 | D34: 2242 | F34: 2243 | H34: 2244 | J34: 2252 | L34: 2253 | N34: 2254 | P34: 2375 | R34: 2376 | T34: 2377 | V34: 2381 | X34: 2440 | Z34: 2461 | AB34: 2600 | AD34: 2601 | AF34: 2612 | AH34: 2613 | AJ34: 2614
A35: 2615 | B35: 2621 | C35: 2623 | D35: 2624 | F35: 2625 | H35: 2626 | J35: 2627 | L35: 2628 | N35: 2629 | P35: 2631 | R35: 2632 | T35: 2633 | V35: 2634 | X35: 2635 | Z35: 2636 | AB35: 2637 | AD35: 2638 | AF35: 2639 | AH35: 2681 | AJ35: 2682
A36: 2683 | B36: 2721 | C36: 2760 | D36: 2767 | F36: 2768
A37: Jász-Nagykun-Szolnok, Baranya, Győr-Moson-Sopron, Komárom-Esztergom, Pest, Somogy, Tolna, Vas megyéknek a fentiekben fel nem sorolt irányítószámú helységei a Terület V. elnevezésű Területi kategóriába sorolandó.
A38: Békés, Borsod-Abaúj-Zemplén, Fejér, Hajdú-Bihar, Heves, Nógrád, Szabolcs-Szatmár-Bereg, Veszprém, Zala megyéknek a fentiekben fel nem sorolt irányítószámú helységei a Terület VI. elnevezésű Területi kategóriába sorolandó.
A39: Bács-Kiskun, Csongrád megyéknek a fentiekben fel nem sorolt irányítószámú helységei a Terület VII. elnevezésű Területi kategóriába sorolandó.

Sheet Legördülő menü adatok
A1: Gépjármű első magyarországi forgalomba helyezése | C1: Gépjármű teljesítménye (kW) | E1: Szerződő Bonus-Malus besorolása | G1: Szerződő kora | I1: Szerződő lakhelye: | K1: Gépjármű felhasználási jellege
A2: 1998 | C2: 0-5 kW között | E2: B10 | G2: -23, | I2: Terület I | K2: Normál
A3: 1999 | C3: 6-37 kW között | E3: B9 | G3: 24-29, | I3: Terület II | K3: Egyéb
A4: 2000 | C4: 38-50 kW között | E4: B8 | G4: 30-49, | I4: Terület III
A5: 2001 | C5: 51-56 kW között | E5: B7 | G5: 50-65, | I5: Terület IV
A6: 2002 | C6: 57-70 kW között | E6: B6 | G6: 66-70, | I6: Terület V
A7: 2003 | C7: 71-100 kW között | E7: B5 | G7: 71-, | I7: Terület VI
A8: 2004 | C8: 101-124 kW között | E8: B4 | G8: Nem természetes | I8: Terület VII
A9: 2005 | C9: 125-180 kW között | E9: B3 | I9: Budapest I
A10: 2006 | C10: 180- kW fölött | E10: B2 | I10: Budapest II
A11: 2007 | E11: B1 | I11: Budapest III
A12: 2008 | E12: A0 | I12: Budapest IV
A13: 2009 | E13: M1 | I13: Budapest V
A14: 2010 | E14: M2 | I14: Budapest VI
A15: 2011 | E15: M3
A16: 2012 | E16: M4
A17: 2013
A18: 2014
A19: 2015
A20: 2016
A21: 2017
A22: 2018
A23: 2019
